Workbook

Sheet Eingabe
A4: =IF(Hilfe!B1=YEAR(TODAY()),"Annuität versus Tilgungsaussetzung","Version ist ungültig!") -> Annuität versus Tilgungsaussetzung
A6: Eingaben
A8: Gesamt-Bruttoeinkommen p. a. | C8: 30000 | E8: Familienstand
E9: Alter | G9: 22
A10: Darlehen | C10: 230000 | E10: Alter Darlehensende | G10: =G9+Hilfe!B11 -> 47
A11: Zins Darlehen p. a. Annuität | C11: 0.015
A12: Zins Darlehen p. a. T-Aussetzung | C12: 0.02
A13: Dauer Darlehen (für die Optimierung) | C13: 25
A14: Zahlrate mtl. (Zins / Tilgung) | C14: 906.5833333 | E14: =IF(Hilfe!K5<0," ACHTUNG: Rate ist zu niedrig!","Anfangstilgung: "&FIXED(Hilfe!K5,2)&" EUR.") -> Anfangstilgung: 619,08 EUR.
B15: Anfangstilgungsrate | C15: =Hilfe!B13 -> 0.0323
A16: =IF(Hilfe!B11=66,"Planmäßiges Darlehensende wird nicht errechnet, liegt aber nach 66 Jahren Darlehensdauer.","Planmäßiges Darlehensende nach "&Hilfe!B11&" Jahren und "&Hilfe!B10&" Monaten.") -> Planmäßiges Darlehensende nach 25 Jahren und 5 Monaten.
A17: Wertentwicklung Fondspolice | C17: 0.04 | E17: gemäß unverbindlicher Hochrechnung im Vorschlag
A18: Ablaufleistung Fondspolice | C18: 272768 | E18: ="(Beitrag mtl. "&FIXED(Hilfe!K5,2)&" EUR, "&Hilfe!B12&" Jahre, nur ganzjährige Laufzeiten)" -> (Beitrag mtl. 619,08 EUR, 25 Jahre, nur ganzjährige Laufzeiten)
A19: Tarif Fondspolice
A22: Hilfsrechner
B24: Sparen auf Eigenkapital
A26: Sparrate vor Darlehensaufnahme | C26: 100
A27: Guthabenzins | C27: 0.06 | E27: Guthaben | G27: =FV(C27/12,C28*12,-C26) -> 16387.93468
A28: Zeit bis zur Darlehensaufnahme | C28: 10 | F28: (Reduziert die Darlehenssumme)
F34: ="Stand: 1/"&Hilfe!B1&"" -> Stand: 1/2022
A35: Quelle: Eigene Berechnungen auf Basis Ihrer Angaben und der gesetzlichen / steuerrechtlichen Daten.
A36: Für die Richtigkeit der Angaben kann keine Gewähr übernommen werden, denn Programm- und Berechnungsfehler sind trotz sorgfältigstem Vorgehen nicht ausgeschlossen.

Sheet Ausgabe
A2: Persönliche Übersicht
A5: Ihre Vorgaben
B7: Darlehenswunsch | E7: =Eingabe!C10 -> 230000
B8: Zins p. a. Annuität | E8: =Eingabe!C11 -> 0.015
B9: Zins p. a. Tilgungsaussetzung | E9: =Eingabe!C12 -> 0.02
B10: Anfangstilgung p. a. | E10: =Eingabe!C15 -> 0.0323
B11: Gesamtrate | E11: =Eingabe!C14 -> 906.5833333
B12: Anfangstilgung p. a. | E12: =Hilfe!K5 -> 619.0833333
A13: ="Beitrag "&Hilfe!B28&"" -> Beitrag CleVesto Select | E13: =Hilfe!K5 -> 619.0833333
A14: ="mögliche Ablaufleistung Fondspolice ("&Eingabe!C17*100&"% p. a.)" -> mögliche Ablaufleistung Fondspolice (4% p. a.) | E14: =Eingabe!C18 -> 272768
B15: Einkommen | E15: =Eingabe!C8 -> 30000
A16: =Eingabe!A16 -> Planmäßiges Darlehensende nach 25 Jahren und 5 Monaten.
A17: ="Tilgungsaussetzung endet nach "&Hilfe!B12&" Jahren mit der Auszahlung der Fondspolice." -> Tilgungsaussetzung endet nach 25 Jahren mit der Auszahlung der Fondspolice.
A19: Vergleich Annuität und Tilgungsaussetzung
A21: Annuität | F21: Tilgungsaussetzung
A23: Gesamtaufwand | C23: =C24+C25 -> 277414.5 | F23: Gesamtaufwand | H23: =H24+H25 -> 300725
A24: davon Tilgungsraten | C24: =Hilfe!K3 -> 230593.5626 | E24: davon Beitrag Fondspolice | H24: =Hilfe!P3 -> 185725
A25: davon Zinsaufwand | C25: =Hilfe!I3 -> 46820.93743 | F25: davon Zinsaufwand | H25: =Hilfe!S3 -> 115000
D27: Auszahlung Fondspolice nach Steuer | H27: =E14-Hilfe!B24 -> 254271.3625
A28: Restdarlehen | C28: =Hilfe!M796 -> 0 | E28: Guthaben (+) / Restdarlehen (-) | H28: =H27-E7 -> 24271.3625
E29: ="(Die Steuer der Zinserträge wurde mit "&Hilfe!A23&" berechnet.)" -> (Die Steuer der Zinserträge wurde mit Abgeltungsteuer ohne Kirchensteuer und Soli berechnet.)
A31: Gesamtaufwand | C31: =C24+C25 -> 277414.5 | F31: Gesamtaufwand | H31: =H23-H28 -> 276453.6375
B32: Vorteil (+) / Nachteil (-) | E32: =C31-H31 -> 960.8625
A34: Bei einer fremdgenutzten Immobilie
A36: Steuereffekt (Zins) | C36: =Hilfe!T3 -> 13907.18128 | F36: Steuereffekt (Zins) | H36: =Hilfe!U3 -> 33630.45755
A37: Netto-Gesamtaufwand | C37: =C23-C36 -> 263507.3187 | F37: Netto-Gesamtaufwand | H37: =H23-H36-H28 -> 242823.1799
B38: Vorteil (+) / Nachteil (-) | E38: =C37-H37 -> 20684.13878
A53: ="Um die angegebene Rendite in Höhe von "&FIXED(Eingabe!C17*100,2)&"% p. a. innerhalb der Fondspolice "&Hilfe!B28&" besser einsortieren zu können, sind hier die Renditen angegeben, die der deutsche Performanceindex DAX über "&Hilfe!B12&" Jahres-Zeiträumen in der Vergangenheit erzielt hat:" -> Um die angegebene Rendite in Höhe von 4,00% p. a. innerhalb der Fondspolice CleVesto Select besser einsortieren zu können, sind hier die Renditen angegeben, die der deutsche Performanceindex DAX über 25 Jahres-Zeiträumen in der Vergangenheit erzielt hat:
B54: schlechteste Rendite | E54: =Hilfe!X3 -> 0.01863220402
B55: Mittelwert | E55: =Hilfe!Y3 -> 0.0683795815
B56: beste Rendite | E56: =Hilfe!Z3 -> 0.1089021746
B57: Anzahl der berechneten Perioden | E57: =Hilfe!AA3 -> 446
A58: Bitte beachten Sie, dass Renditen aus der Vergangenheit keine Gewähr für die Zukunft geben können.
A60: Bei einer fremdgenutzten Immobilie können die Darlehenszinsen in der Steuererklärung geltend gemacht werden und wirken sich somit steuermindernd aus. Es könnte deshalb vorteilhaft sein, die Tilgung auszusetzen, um von einer gleichbleibenden Steuerentlastung zu profitieren.
A61: ="Eine Alternative zur laufenden Tilgung des Darlehens ist eine so genannte Finanzierung mit Tilgungsaussetzung. Die Zinsen bleiben konstant, da die Tilgungsrate in eine Fondspolice "&Hilfe!B28&" investiert wird. Die Erträge daraus müssen ab einer Laufzeit von 12 Jahren und einem Mindestalter bei Verfügung von 62 Jahren (Stand "&Hilfe!B1&") nur zur Hälfte mit dem persönlichen Steuersatz versteuert werden." -> Eine Alternative zur laufenden Tilgung des Darlehens ist eine so genannte Finanzierung mit Tilgungsaussetzung. Die Zinsen bleiben konstant, da die Tilgungsrate in eine Fondspolice CleVesto Select investiert wird. Die Erträge daraus müssen ab einer Laufzeit von 12 Jahren und einem Mindestalter bei Verfügung von 62 Jahren (Stand 2022) nur zur Hälfte mit dem persönlichen Steuersatz versteuert werden.
A62: Ein zusätzlicher Renditeeffekt kann sich bei der Tilgungsaussetzung einstellen, wenn die Rendite der Police höher als der Darlehenszins ist. Bei guter Wertentwicklung ist dadurch eine vorzeitige Tilgung oder ein Überschuss möglich. Bitte beachten Sie dabei: Die Wertentwicklung der Fondsanlage ist nicht garantiert und kann auch negativ sein! Somit kann die Ablaufleistung der Fondspolice (nach Steuer) größer oder auch kleiner als der Darlehensbetrag sein!
A64: Bitte beachten: Diese Informationen sind keine Informationen nach dem Versicherungsvertragsgesetz (VVG), der VVG Informationspflichtenverordnung (VVG-InfoV), dem Altersvorsorgeverträge-Zertifizierungsgesetz (AltZertG) und der Altersvorsorge-Produktinformationsblattverordnung (AltvPIBV).
A65: Ziehen Sie für die Steuerbetrachtung immer Ihren Steuerberater mit hinzu.
F67: ="Stand: 1/"&Hilfe!B1&"" -> Stand: 1/2022
A68: Quelle: Eigene Berechnungen auf Basis Ihrer Angaben und der gesetzlichen / steuerrechtlichen Daten.
A69: Für die Richtigkeit der Angaben kann keine Gewähr übernommen werden, denn Programm- und Berechnungsfehler sind trotz sorgfältigstem Vorgehen nicht ausgeschlossen.

Sheet Hilfe (hidden)
A1: Jahr | B1: 2022
A2: Gehalt | B2: =Eingabe!C8 -> 30000 | D2: Annuität | P2: Vergleich
A3: nicht verheiratet | B3: 1 | I3: =SUM(I5:I796) -> 46820.93743 | J3: =SUM(J5:J796) -> 277414.5 | K3: =SUM(K5:K796) -> 230593.5626 | P3: =SUM(P5:P69)-P5 -> 185725 | R3: =SUM(R5:R69) -> 46820.93743 | S3: =SUM(S5:S69)-S5 -> 115000 | T3: =SUM(T5:T69) -> 13907.18128 | U3: =SUM(U5:U69)-U5 -> 33630.45755 | W3: =B12 -> 25 | X3: =VLOOKUP(W3,W5:AA56,2) -> 0.01863220402 | Y3: =VLOOKUP(W3,W5:AA56,3) -> 0.0683795815 | Z3: =VLOOKUP(W3,W5:AA56,4) -> 0.1089021746 | AA3: =VLOOKUP(W3,W5:AA56,5) -> 446
A4: verheiratet | D4: Ende | E4: Für sverweis | F4: Jahre | G4: Monate | H4: Restschuld | I4: Zins | J4: Rate | K4: Tilgung | L4: Rate | M4: Gesamt | N4: Zins pro Jahr | P4: Beitrag | Q4: Jahr | R4: Zins Annuität | S4: Zins Tilgungsaussetzung | T4: Steuereffekt Annuität | U4: Steuereffekt Tilgungsaussetzung | W4: Laufzeit | X4: Min | Y4: Mittel | Z4: 0.04 | AA4: Perioden
D5: =IF(AND(M5=0,M4>0),1,0) -> 0 | E5: =IF(G5=12,1+E4,0) -> 0 | F5: 0 | G5: 1 | H5: =Eingabe!C10 -> 230000 | I5: =H5*Eingabe!$C$11/12 -> 287.5 | J5: =Eingabe!C14 -> 906.5833333 | K5: =J5-I5 -> 619.0833333 | L5: =I5+K5 -> 906.5833333 | M5: =H5-K5 -> 229380.9167 | N5: =IF(G5=1,I5,I5+I4) -> 287.5 | P5: =IF(R5>0,Ausgabe!$E$13*12,0) -> 7429 | Q5: 1 | R5: =VLOOKUP(Q5,E4:N796,10,FALSE) -> 3398.712215 | S5: =IF(R5>0,$H$5*Eingabe!$C$12,0) -> 4600 | T5: =steuer($B$3,$B$2)-steuer($B$3,$B$2-R5) -> 1002.342803 | U5: =steuer($B$3,$B$2)-steuer($B$3,$B$2-S5) -> 1345.218302 | W5: 10 | X5: 0.01026077326 | Y5: 0.05754632764 | Z5: 0.1357152422 | AA5: 626
A6: Eigengenutzt | B6: 1 | D6: 0 | E6: =IF(G6=12,1+E5,E5) -> 0 | F6: 0 | G6: 2 | H6: =M5 -> 229380.9167 | I6: =H6*Eingabe!$C$11/12 -> 286.7261458 | J6: =IF(H6=0,0,J5) -> 906.5833333 | K6: =J6-I6 -> 619.8571875 | L6: =I6+K6 -> 906.5833333 | M6: =IF(H6-K6<=0,0,H6-K6) -> 228761.0595 | N6: =IF(G6=1,I6,I6+N5) -> 574.2261458 | P6: =IF(R6>0,Ausgabe!$E$13*12,0) -> 7429 | Q6: 2 | R6: 3285.733271 | S6: =IF(R6>0,$H$5*Eingabe!$C$12,0) -> 4600 | T6: 969.7890428 | U6: 1345.218302 | W6: 11 | X6: 0.009004532655 | Y6: 0.05734831322 | Z6: 0.1308958472 | AA6: 614
A7: Fremdgenutzt | B7: =IF(B6=1,A6,A7) -> Eigengenutzt | D7: 0 | E7: =IF(G7=12,1+E6,E6) -> 0 | F7: 0 | G7: 3 | H7: =M6 -> 228761.0595 | I7: =H7*Eingabe!$C$11/12 -> 285.9513243 | J7: 906.5833333 | K7: =J7-I7 -> 620.632009 | L7: =I7+K7 -> 906.5833333 | M7: 228140.4275 | N7: 860.1774702 | P7: =IF(R7>0,Ausgabe!$E$13*12,0) -> 7429 | Q7: 3 | R7: 3171.047942 | S7: =IF(R7>0,$H$5*Eingabe!$C$12,0) -> 4600 | T7: 936.6919228 | U7: 1345.218302 | W7: 12 | X7: 0.01066156645 | Y7: 0.05743910694 | Z7: 0.124648753 | AA7: 602
D8: 0 | E8: 0 | F8: 0 | G8: 4 | H8: 228140.4275 | I8: =H8*Eingabe!$C$11/12 -> 285.1755343 | J8: 906.5833333 | K8: 621.407799 | L8: 906.5833333 | M8: 227519.0197 | N8: 1145.353005 | P8: =IF(R8>0,Ausgabe!$E$13*12,0) -> 7429 | Q8: 4 | R8: 3054.630457 | S8: =IF(R8>0,$H$5*Eingabe!$C$12,0) -> 4600 | T8: 903.0369582 | U8: 1345.218302 | W8: 13 | X8: 0.01141734891 | Y8: 0.05761069076 | Z8: 0.1230823515 | AA8: 590
D9: 0 | E9: 0 | F9: 0 | G9: 5 | H9: 227519.0197 | I9: =H9*Eingabe!$C$11/12 -> 284.3987746 | J9: 906.5833333 | K9: 622.1845587 | L9: 906.5833333 | M9: 226896.8351 | N9: 1429.751779 | P9: =IF(R9>0,Ausgabe!$E$13*12,0) -> 7429 | Q9: 5 | R9: 2936.454655 | S9: =IF(R9>0,$H$5*Eingabe!$C$12,0) -> 4600 | T9: 868.8157662 | U9: 1345.218302 | W9: 14 | X9: 0.01012269743 | Y9: 0.0578556611 | Z9: 0.1209840128 | AA9: 578
A10: Monat | B10: =VLOOKUP(1,D:G,4,FALSE)-1 -> 5 | D10: 0 | E10: 0 | F10: 0 | G10: 6 | H10: 226896.8351 | I10: =H10*Eingabe!$C$11/12 -> 283.6210439 | J10: 906.5833333 | K10: 622.9622894 | L10: 906.5833333 | M10: 226273.8728 | N10: 1713.372823 | P10: =IF(R10>0,Ausgabe!$E$13*12,0) -> 7429 | Q10: 6 | R10: 2816.493977 | S10: =IF(R10>0,$H$5*Eingabe!$C$12,0) -> 4600 | T10: 834.0202323 | U10: 1345.218302 | W10: 15 | X10: 0.009028353661 | Y10: 0.05845068166 | Z10: 0.1164145885 | AA10: 566
A11: Jahr | B11: =VLOOKUP(1,D:G,3,FALSE) -> 25 | D11: 0 | E11: 0 | F11: 0 | G11: 7 | H11: 226273.8728 | I11: =H11*Eingabe!$C$11/12 -> 282.842341 | J11: 906.5833333 | K11: 623.7409923 | L11: 906.5833333 | M11: 225650.1318 | N11: 1996.215164 | P11: =IF(R11>0,Ausgabe!$E$13*12,0) -> 7429 | Q11: 7 | R11: 2694.721467 | S11: =IF(R11>0,$H$5*Eingabe!$C$12,0) -> 4600 | T11: 798.6390455 | U11: 1345.218302 | W11: 16 | X11: 0.01030249751 | Y11: 0.05930448281 | Z11: 0.1123285792 | AA11: 554
A12: Fondspolicen Jahre | B12: =IF(B10=0,B11,B11) -> 25 | D12: 0 | E12: 0 | F12: 0 | G12: 8 | H12: 225650.1318 | I12: =H12*Eingabe!$C$11/12 -> 282.0626648 | J12: 906.5833333 | K12: 624.5206685 | L12: 906.5833333 | M12: 225025.6112 | N12: 2278.277829 | P12: =IF(R12>0,Ausgabe!$E$13*12,0) -> 7429 | Q12: 8 | R12: 2571.109758 | S12: =IF(R12>0,$H$5*Eingabe!$C$12,0) -> 4600 | T12: 762.6607943 | U12: 1345.218302 | W12: 17 | X12: 0.0118188156 | Y12: 0.06016231868 | Z12: 0.1125809867 | AA12: 542
A13: Tilgungsrate | B13: =K5*12/H5 -> 0.0323 | D13: 0 | E13: 0 | F13: 0 | G13: 9 | H13: 225025.6112 | I13: =H13*Eingabe!$C$11/12 -> 281.282014 | J13: 906.5833333 | K13: 625.3013194 | L13: 906.5833333 | M13: 224400.3098 | N13: 2559.559843 | P13: =IF(R13>0,Ausgabe!$E$13*12,0) -> 7429 | Q13: 9 | R13: 2445.631074 | S13: =IF(R13>0,$H$5*Eingabe!$C$12,0) -> 4600 | T13: 726.0732695 | U13: 1345.218302 | W13: 18 | X13: 0.01103349886 | Y13: 0.06103098924 | Z13: 0.1125549532 | AA13: 530
D14: 0 | E14: 0 | F14: 0 | G14: 10 | H14: 224400.3098 | I14: =H14*Eingabe!$C$11/12 -> 280.5003873 | J14: 906.5833333 | K14: 626.082946 | L14: 906.5833333 | M14: 223774.2269 | N14: 2840.06023 | P14: =IF(R14>0,Ausgabe!$E$13*12,0) -> 7429 | Q14: 10 | R14: 2318.257215 | S14: =IF(R14>0,$H$5*Eingabe!$C$12,0) -> 4600 | T14: 688.868683 | U14: 1345.218302 | W14: 19 | X14: 0.01128200364 | Y14: 0.06190858269 | Z14: 0.1146716243 | AA14: 518
A15: Berechnung Ablauf nach Steuer | D15: 0 | E15: 0 | F15: 0 | G15: 11 | H15: 223774.2269 | I15: =H15*Eingabe!$C$11/12 -> 279.7177836 | J15: 906.5833333 | K15: 626.8655497 | L15: 906.5833333 | M15: 223147.3613 | N15: 3119.778014 | P15: =IF(R15>0,Ausgabe!$E$13*12,0) -> 7429 | Q15: 11 | R15: 2188.959558 | S15: =IF(R15>0,$H$5*Eingabe!$C$12,0) -> 4600 | T15: 651.031486 | U15: 1345.218302 | W15: 20 | X15: 0.01171671396 | Y15: 0.06273160527 | Z15: 0.1154900348 | AA15: 506
A16: Ablaufleistung | B16: =Eingabe!C18 -> 272768 | D16: 0 | E16: 1 | F16: 0 | G16: 12 | H16: 223147.3613 | I16: =H16*Eingabe!$C$11/12 -> 278.9342017 | J16: 906.5833333 | K16: 627.6491316 | L16: 906.5833333 | M16: 222519.7122 | N16: 3398.712215 | P16: =IF(R16>0,Ausgabe!$E$13*12,0) -> 7429 | Q16: 12 | R16: 2057.709046 | S16: =IF(R16>0,$H$5*Eingabe!$C$12,0) -> 4600 | T16: 612.5533387 | U16: 1345.218302 | W16: 21 | X16: 0.01196419647 | Y16: 0.06362113876 | Z16: 0.1157265055 | AA16: 494
A17: Beitragssumme | B17: =P3 -> 185725 | D17: 0 | E17: 1 | F17: 1 | G17: 1 | H17: 222519.7122 | I17: =H17*Eingabe!$C$11/12 -> 278.1496403 | J17: 906.5833333 | K17: 628.4336931 | L17: 906.5833333 | M17: 221891.2785 | N17: 278.1496403 | P17: =IF(R17>0,Ausgabe!$E$13*12,0) -> 7429 | Q17: 13 | R17: 1924.476185 | S17: =IF(R17>0,$H$5*Eingabe!$C$12,0) -> 4600 | T17: 573.4216102 | U17: 1345.218302 | W17: 22 | X17: 0.01109280733 | Y17: 0.06467557524 | Z17: 0.1148931134 | AA17: 482
A18: Ertrag | B18: =MAX(B16-B17,0) -> 87043 | D18: 0 | E18: 1 | F18: 1 | G18: 2 | H18: 221891.2785 | I18: =H18*Eingabe!$C$11/12 -> 277.3640982 | J18: 906.5833333 | K18: 629.2192352 | L18: 906.5833333 | M18: 221262.0593 | N18: 555.5137384 | P18: =IF(R18>0,Ausgabe!$E$13*12,0) -> 7429 | Q18: 14 | R18: 1789.231034 | S18: =IF(R18>0,$H$5*Eingabe!$C$12,0) -> 4600 | T18: 533.6217949 | U18: 1345.218302 | W18: 23 | X18: 0.01064474798 | Y18: 0.0658703495 | Z18: 0.112934786 | AA18: 470
A19: Teilfreistellung 15% | B19: =B18*0.15 -> 13056.45 | D19: 0 | E19: 1 | F19: 1 | G19: 3 | H19: 221262.0593 | I19: =H19*Eingabe!$C$11/12 -> 276.5775741 | J19: 906.5833333 | K19: 630.0057592 | L19: 906.5833333 | M19: 220632.0535 | N19: 832.0913125 | P19: =IF(R19>0,Ausgabe!$E$13*12,0) -> 7429 | Q19: 15 | R19: 1651.9432 | S19: =IF(R19>0,$H$5*Eingabe!$C$12,0) -> 4600 | T19: 493.1445293 | U19: 1345.218302 | W19: 24 | X19: 0.01404296289 | Y19: 0.06714434679 | Z19: 0.1108562459 | AA19: 458
A20: zu versteuern | B20: =B18-B19 -> 73986.55 | D20: 0 | E20: 1 | F20: 1 | G20: 4 | H20: 220632.0535 | I20: =H20*Eingabe!$C$11/12 -> 275.7900669 | J20: 906.5833333 | K20: 630.7932664 | L20: 906.5833333 | M20: 220001.2603 | N20: 1107.881379 | P20: =IF(R20>0,Ausgabe!$E$13*12,0) -> 7429 | Q20: 16 | R20: 1512.581832 | S20: =IF(R20>0,$H$5*Eingabe!$C$12,0) -> 4600 | T20: 451.9771804 | U20: 1345.218302 | W20: 25 | X20: 0.01863220402 | Y20: 0.0683795815 | Z20: 0.1089021746 | AA20: 446
A21: Steuer bei HEV ohne Kiche / Soli | B21: =steuer(B3,B2+B20/2)-steuer(B3,B2) -> 13849.10394 | D21: 0 | E21: 1 | F21: 1 | G21: 5 | H21: 220001.2603 | I21: =H21*Eingabe!$C$11/12 -> 275.0015753 | J21: 906.5833333 | K21: 631.581758 | L21: 906.5833333 | M21: 219369.6785 | N21: 1382.882955 | P21: =IF(R21>0,Ausgabe!$E$13*12,0) -> 7429 | Q21: 17 | R21: 1371.115612 | S21: =IF(R21>0,$H$5*Eingabe!$C$12,0) -> 4600 | T21: 410.1076975 | U21: 1345.218302 | W21: 26 | X21: 0.0266911873 | Y21: 0.0695015431 | Z21: 0.1067955856 | AA21: 434
A22: Abgeltungsteuer ohne Soli/Kirche | B22: =B20*0.25 -> 18496.6375 | D22: 0 | E22: 1 | F22: 1 | G22: 6 | H22: 219369.6785 | I22: =H22*Eingabe!$C$11/12 -> 274.2120981 | J22: 906.5833333 | K22: 632.3712352 | L22: 906.5833333 | M22: 218737.3073 | N22: 1657.095053 | P22: =IF(R22>0,Ausgabe!$E$13*12,0) -> 7429 | Q22: 18 | R22: 1227.512748 | S22: =IF(R22>0,$H$5*Eingabe!$C$12,0) -> 4600 | T22: 367.5171851 | U22: 1345.218302 | W22: 27 | X22: 0.03926315805 | Y22: 0.07032000141 | Z22: 0.1050981208 | AA22: 422
A23: =IF(AND(B11>12,Eingabe!G9+Hilfe!B11>=62),"Halbeinkünfteverfahren ohne Kirchensteuer und Soli","Abgeltungsteuer ohne Kirchensteuer und Soli") -> Abgeltungsteuer ohne Kirchensteuer und Soli | D23: 0 | E23: 1 | F23: 1 | G23: 7 | H23: 218737.3073 | I23: =H23*Eingabe!$C$11/12 -> 273.4216341 | J23: 906.5833333 | K23: 633.1616992 | L23: 906.5833333 | M23: 218104.1456 | N23: 1930.516687 | P23: =IF(R23>0,Ausgabe!$E$13*12,0) -> 7429 | Q23: 19 | R23: 1081.740971 | S23: =IF(R23>0,$H$5*Eingabe!$C$12,0) -> 4600 | T23: 324.1993358 | U23: 1345.218302 | W23: 28 | X23: 0.04709812639 | Y23: 0.07086975979 | Z23: 0.1036554417 | AA23: 410
A24: Steuer effektiv | B24: =IF(AND(B11>12,Eingabe!G9+Hilfe!B11>=62),Hilfe!B21,Hilfe!B22) -> 18496.6375 | D24: 0 | E24: 1 | F24: 1 | G24: 8 | H24: 218104.1456 | I24: =H24*Eingabe!$C$11/12 -> 272.630182 | J24: 906.5833333 | K24: 633.9531514 | L24: 906.5833333 | M24: 217470.1924 | N24: 2203.146869 | P24: =IF(R24>0,Ausgabe!$E$13*12,0) -> 7429 | Q24: 20 | R24: 933.7675218 | S24: =IF(R24>0,$H$5*Eingabe!$C$12,0) -> 4600 | T24: 280.1374596 | U24: 1345.218302 | W24: 29 | X24: 0.04834848027 | Y24: 0.07130239 | Z24: 0.1019561101 | AA24: 398
D25: 0 | E25: 1 | F25: 1 | G25: 9 | H25: 217470.1924 | I25: =H25*Eingabe!$C$11/12 -> 271.8377405 | J25: 906.5833333 | K25: 634.7455928 | L25: 906.5833333 | M25: 216835.4468 | N25: 2474.984609 | P25: =IF(R25>0,Ausgabe!$E$13*12,0) -> 7429 | Q25: 21 | R25: 783.5591471 | S25: =IF(R25>0,$H$5*Eingabe!$C$12,0) -> 4600 | T25: 235.3164827 | U25: 1345.218302 | W25: 30 | X25: 0.05156658958 | Y25: 0.07166459794 | Z25: 0.09958851868 | AA25: 386
A26: CleVesto Allcase | B26: 2 | D26: 0 | E26: 1 | F26: 1 | G26: 10 | H26: 216835.4468 | I26: =H26*Eingabe!$C$11/12 -> 271.0443085 | J26: 906.5833333 | K26: 635.5390248 | L26: 906.5833333 | M26: 216199.9078 | N26: 2746.028918 | P26: =IF(R26>0,Ausgabe!$E$13*12,0) -> 7429 | Q26: 22 | R26: 631.0820919 | S26: =IF(R26>0,$H$5*Eingabe!$C$12,0) -> 4600 | T26: 189.7229625 | U26: 1345.218302 | W26: 31 | X26: 0.05441426805 | Y26: 0.07191128551 | Z26: 0.09756280072 | AA26: 374
A27: CleVesto Select | D27: 0 | E27: 1 | F27: 1 | G27: 11 | H27: 216199.9078 | I27: =H27*Eingabe!$C$11/12 -> 270.2498848 | J27: 906.5833333 | K27: 636.3334486 | L27: 906.5833333 | M27: 215563.5744 | N27: 3016.278803 | P27: =IF(R27>0,Ausgabe!$E$13*12,0) -> 7429 | Q27: 23 | R27: 476.3020909 | S27: =IF(R27>0,$H$5*Eingabe!$C$12,0) -> 4600 | T27: 143.3433152 | U27: 1345.218302 | W27: 32 | X27: 0.05315271503 | Y27: 0.07215698128 | Z27: 0.09558940077 | AA27: 362
A28: CleVesto Favorites | B28: =IF(B26=1,A26,IF(B26=2,A27,A28)) -> CleVesto Select | D28: 0 | E28: 2 | F28: 1 | G28: 12 | H28: 215563.5744 | I28: =H28*Eingabe!$C$11/12 -> 269.4544679 | J28: 906.5833333 | K28: 637.1288654 | L28: 906.5833333 | M28: 214926.4455 | N28: 3285.733271 | P28: =IF(R28>0,Ausgabe!$E$13*12,0) -> 7429 | Q28: 24 | R28: 319.1843616 | S28: =IF(R28>0,$H$5*Eingabe!$C$12,0) -> 4600 | T28: 96.16130393 | U28: 1345.218302 | W28: 33 | X28: 0.05233088136 | Y28: 0.07246536006 | Z28: 0.09326252846 | AA28: 350
D29: 0 | E29: 2 | F29: 2 | G29: 1 | H29: 214926.4455 | I29: =H29*Eingabe!$C$11/12 -> 268.6580569 | J29: 906.5833333 | K29: 637.9252765 | L29: 906.5833333 | M29: 214288.5202 | N29: 268.6580569 | P29: =IF(R29>0,Ausgabe!$E$13*12,0) -> 7429 | Q29: 25 | R29: 159.6935958 | S29: =IF(R29>0,$H$5*Eingabe!$C$12,0) -> 4600 | T29: 48.16339617 | U29: 1345.218302 | W29: 34 | X29: 0.05349495527 | Y29: 0.07279094087 | Z29: 0.09109330903 | AA29: 338
D30: 0 | E30: 2 | F30: 2 | G30: 2 | H30: 214288.5202 | I30: =H30*Eingabe!$C$11/12 -> 267.8606503 | J30: 906.5833333 | K30: 638.7226831 | L30: 906.5833333 | M30: 213649.7975 | N30: 536.5187071 | P30: =IF(R30>0,Ausgabe!$E$13*12,0) -> 7429 | Q30: 26 | R30: 19.28640124 | S30: =IF(R30>0,$H$5*Eingabe!$C$12,0) -> 4600 | T30: 5.823683716 | U30: 1345.218302 | W30: 35 | X30: 0.05482742869 | Y30: 0.07306670295 | Z30: 0.08948433068 | AA30: 326
D31: 0 | E31: 2 | F31: 2 | G31: 3 | H31: 213649.7975 | I31: =H31*Eingabe!$C$11/12 -> 267.0622469 | J31: 906.5833333 | K31: 639.5210864 | L31: 906.5833333 | M31: 213010.2764 | N31: 803.580954 | P31: =IF(R31>0,Ausgabe!$E$13*12,0) -> 0 | Q31: 27 | R31: 0 | S31: =IF(R31>0,$H$5*Eingabe!$C$12,0) -> 0 | T31: 0 | U31: 0 | W31: 36 | X31: 0.05427398977 | Y31: 0.07338133142 | Z31: 0.08831392286 | AA31: 314
D32: 0 | E32: 2 | F32: 2 | G32: 4 | H32: 213010.2764 | I32: =H32*Eingabe!$C$11/12 -> 266.2628456 | J32: 906.5833333 | K32: 640.3204878 | L32: 906.5833333 | M32: 212369.956 | N32: 1069.8438 | P32: =IF(R32>0,Ausgabe!$E$13*12,0) -> 0 | Q32: 28 | R32: 0 | S32: =IF(R32>0,$H$5*Eingabe!$C$12,0) -> 0 | T32: 0 | U32: 0 | W32: 37 | X32: 0.05594827742 | Y32: 0.07371213842 | Z32: 0.08670591444 | AA32: 302
D33: 0 | E33: 2 | F33: 2 | G33: 5 | H33: 212369.956 | I33: =H33*Eingabe!$C$11/12 -> 265.4624449 | J33: 906.5833333 | K33: 641.1208884 | L33: 906.5833333 | M33: 211728.8351 | N33: 1335.306245 | P33: =IF(R33>0,Ausgabe!$E$13*12,0) -> 0 | Q33: 29 | R33: 0 | S33: =IF(R33>0,$H$5*Eingabe!$C$12,0) -> 0 | T33: 0 | U33: 0 | W33: 38 | X33: 0.06049676429 | Y33: 0.07393571651 | Z33: 0.08500098995 | AA33: 290
D34: 0 | E34: 2 | F34: 2 | G34: 6 | H34: 211728.8351 | I34: =H34*Eingabe!$C$11/12 -> 264.6610438 | J34: 906.5833333 | K34: 641.9222895 | L34: 906.5833333 | M34: 211086.9128 | N34: 1599.967288 | P34: =IF(R34>0,Ausgabe!$E$13*12,0) -> 0 | Q34: 30 | R34: 0 | S34: =IF(R34>0,$H$5*Eingabe!$C$12,0) -> 0 | T34: 0 | U34: 0 | W34: 39 | X34: 0.06676598991 | Y34: 0.07390524753 | Z34: 0.08343976304 | AA34: 278
D35: 0 | E35: 2 | F35: 2 | G35: 7 | H35: 211086.9128 | I35: =H35*Eingabe!$C$11/12 -> 263.858641 | J35: 906.5833333 | K35: 642.7246924 | L35: 906.5833333 | M35: 210444.1881 | N35: 1863.825929 | P35: =IF(R35>0,Ausgabe!$E$13*12,0) -> 0 | Q35: 31 | R35: 0 | S35: =IF(R35>0,$H$5*Eingabe!$C$12,0) -> 0 | T35: 0 | U35: 0 | W35: 40 | X35: 0.0674803285 | Y35: 0.07359318657 | Z35: 0.08221025786 | AA35: 266
D36: 0 | E36: 2 | F36: 2 | G36: 8 | H36: 210444.1881 | I36: =H36*Eingabe!$C$11/12 -> 263.0552351 | J36: 906.5833333 | K36: 643.5280982 | L36: 906.5833333 | M36: 209800.66 | N36: 2126.881164 | P36: =IF(R36>0,Ausgabe!$E$13*12,0) -> 0 | Q36: 32 | R36: 0 | S36: =IF(R36>0,$H$5*Eingabe!$C$12,0) -> 0 | T36: 0 | U36: 0 | W36: 41 | X36: 0.06680188107 | Y36: 0.07299002831 | Z36: 0.08061831882 | AA36: 254
D37: 0 | E37: 2 | F37: 2 | G37: 9 | H37: 209800.66 | I37: =H37*Eingabe!$C$11/12 -> 262.250825 | J37: 906.5833333 | K37: 644.3325084 | L37: 906.5833333 | M37: 209156.3275 | N37: 2389.131989 | P37: =IF(R37>0,Ausgabe!$E$13*12,0) -> 0 | Q37: 33 | R37: =VLOOKUP(Q37,E36:N828,10,FALSE) -> 0 | S37: =IF(R37>0,$H$5*Eingabe!$C$12,0) -> 0 | T37: =steuer($B$3,$B$2)-steuer($B$3,$B$2-R37) -> 0 | U37: =steuer($B$3,$B$2)-steuer($B$3,$B$2-S37) -> 0 | W37: 42 | X37: 0.06586122816 | Y37: 0.07211261181 | Z37: 0.07895309691 | AA37: 242
D38: 0 | E38: 2 | F38: 2 | G38: 10 | H38: 209156.3275 | I38: =H38*Eingabe!$C$11/12 -> 261.4454093 | J38: 906.5833333 | K38: 645.137924 | L38: 906.5833333 | M38: 208511.1896 | N38: 2650.577399 | P38: =IF(R38>0,Ausgabe!$E$13*12,0) -> 0 | Q38: 34 | R38: 0 | S38: =IF(R38>0,$H$5*Eingabe!$C$12,0) -> 0 | T38: 0 | U38: 0 | W38: 43 | X38: 0.06492318942 | Y38: 0.07113435083 | Z38: 0.07691167118 | AA38: 230
D39: 0 | E39: 2 | F39: 2 | G39: 11 | H39: 208511.1896 | I39: =H39*Eingabe!$C$11/12 -> 260.6389869 | J39: 906.5833333 | K39: 645.9443464 | L39: 906.5833333 | M39: 207865.2452 | N39: 2911.216386 | P39: =IF(R39>0,Ausgabe!$E$13*12,0) -> 0 | Q39: 35 | R39: 0 | S39: =IF(R39>0,$H$5*Eingabe!$C$12,0) -> 0 | T39: 0 | U39: 0 | W39: 44 | X39: 0.0642564324 | Y39: 0.0702567146 | Z39: 0.07523788886 | AA39: 218
D40: 0 | E40: 3 | F40: 2 | G40: 12 | H40: 207865.2452 | I40: =H40*Eingabe!$C$11/12 -> 259.8315565 | J40: 906.5833333 | K40: 646.7517768 | L40: 906.5833333 | M40: 207218.4934 | N40: 3171.047942 | P40: =IF(R40>0,Ausgabe!$E$13*12,0) -> 0 | Q40: 36 | R40: 0 | S40: =IF(R40>0,$H$5*Eingabe!$C$12,0) -> 0 | T40: 0 | U40: 0 | W40: 45 | X40: 0.06338421514 | Y40: 0.06954872217 | Z40: 0.07517566157 | AA40: 206
D41: 0 | E41: 3 | F41: 3 | G41: 1 | H41: 207218.4934 | I41: =H41*Eingabe!$C$11/12 -> 259.0231168 | J41: 906.5833333 | K41: 647.5602165 | L41: 906.5833333 | M41: 206570.9332 | N41: 259.0231168 | P41: =IF(R41>0,Ausgabe!$E$13*12,0) -> 0 | Q41: 37 | R41: 0 | S41: =IF(R41>0,$H$5*Eingabe!$C$12,0) -> 0 | T41: 0 | U41: 0 | W41: 46 | X41: 0.06229670108 | Y41: 0.06905635224 | Z41: 0.07461991933 | AA41: 194
D42: 0 | E42: 3 | F42: 3 | G42: 2 | H42: 206570.9332 | I42: =H42*Eingabe!$C$11/12 -> 258.2136665 | J42: 906.5833333 | K42: 648.3696668 | L42: 906.5833333 | M42: 205922.5635 | N42: 517.2367833 | P42: =IF(R42>0,Ausgabe!$E$13*12,0) -> 0 | Q42: 38 | R42: 0 | S42: =IF(R42>0,$H$5*Eingabe!$C$12,0) -> 0 | T42: 0 | U42: 0 | W42: 47 | X42: 0.06161038296 | Y42: 0.06881439523 | Z42: 0.07395353915 | AA42: 182
D43: 0 | E43: 3 | F43: 3 | G43: 3 | H43: 205922.5635 | I43: =H43*Eingabe!$C$11/12 -> 257.4032044 | J43: 906.5833333 | K43: 649.1801289 | L43: 906.5833333 | M43: 205273.3834 | N43: 774.6399877 | P43: =IF(R43>0,Ausgabe!$E$13*12,0) -> 0 | Q43: 39 | R43: 0 | S43: =IF(R43>0,$H$5*Eingabe!$C$12,0) -> 0 | T43: 0 | U43: 0 | W43: 48 | X43: 0.06319017543 | Y43: 0.06859379722 | Z43: 0.07332265943 | AA43: 170
D44: 0 | E44: 3 | F44: 3 | G44: 4 | H44: 205273.3834 | I44: =H44*Eingabe!$C$11/12 -> 256.5917293 | J44: 906.5833333 | K44: 649.9916041 | L44: 906.5833333 | M44: 204623.3918 | N44: 1031.231717 | P44: =IF(R44>0,Ausgabe!$E$13*12,0) -> 0 | Q44: 40 | R44: 0 | S44: =IF(R44>0,$H$5*Eingabe!$C$12,0) -> 0 | T44: 0 | U44: 0 | W44: 49 | X44: 0.06369050038 | Y44: 0.06818335751 | Z44: 0.07254075411 | AA44: 158
D45: 0 | E45: 3 | F45: 3 | G45: 5 | H45: 204623.3918 | I45: =H45*Eingabe!$C$11/12 -> 255.7792398 | J45: 906.5833333 | K45: 650.8040936 | L45: 906.5833333 | M45: 203972.5877 | N45: 1287.010957 | P45: =IF(R45>0,Ausgabe!$E$13*12,0) -> 0 | Q45: 41 | R45: 0 | S45: =IF(R45>0,$H$5*Eingabe!$C$12,0) -> 0 | T45: 0 | U45: 0 | W45: 50 | X45: 0.06301522952 | Y45: 0.06775267587 | Z45: 0.07180926822 | AA45: 146
D46: 0 | E46: 3 | F46: 3 | G46: 6 | H46: 203972.5877 | I46: =H46*Eingabe!$C$11/12 -> 254.9657346 | J46: 906.5833333 | K46: 651.6175987 | L46: 906.5833333 | M46: 203320.9701 | N46: 1541.976691 | P46: =IF(R46>0,Ausgabe!$E$13*12,0) -> 0 | Q46: 42 | R46: 0 | S46: =IF(R46>0,$H$5*Eingabe!$C$12,0) -> 0 | T46: 0 | U46: 0 | W46: 51 | X46: 0.06255564144 | Y46: 0.06735706279 | Z46: 0.07122756966 | AA46: 134
D47: 0 | E47: 3 | F47: 3 | G47: 7 | H47: 203320.9701 | I47: =H47*Eingabe!$C$11/12 -> 254.1512126 | J47: 906.5833333 | K47: 652.4321207 | L47: 906.5833333 | M47: 202668.538 | N47: 1796.127904 | P47: =IF(R47>0,Ausgabe!$E$13*12,0) -> 0 | Q47: 43 | R47: 0 | S47: =IF(R47>0,$H$5*Eingabe!$C$12,0) -> 0 | T47: 0 | U47: 0 | W47: 52 | X47: 0.06172380953 | Y47: 0.06699477468 | Z47: 0.07058201237 | AA47: 122
D48: 0 | E48: 3 | F48: 3 | G48: 8 | H48: 202668.538 | I48: =H48*Eingabe!$C$11/12 -> 253.3356725 | J48: 906.5833333 | K48: 653.2476608 | L48: 906.5833333 | M48: 202015.2903 | N48: 2049.463577 | P48: =IF(R48>0,Ausgabe!$E$13*12,0) -> 0 | Q48: 44 | R48: 0 | S48: =IF(R48>0,$H$5*Eingabe!$C$12,0) -> 0 | T48: 0 | U48: 0 | W48: 53 | X48: 0.06091987542 | Y48: 0.06680831233 | Z48: 0.07001894983 | AA48: 110
D49: 0 | E49: 3 | F49: 3 | G49: 9 | H49: 202015.2903 | I49: =H49*Eingabe!$C$11/12 -> 252.5191129 | J49: 906.5833333 | K49: 654.0642204 | L49: 906.5833333 | M49: 201361.2261 | N49: 2301.982689 | P49: =IF(R49>0,Ausgabe!$E$13*12,0) -> 0 | Q49: 45 | R49: 0 | S49: =IF(R49>0,$H$5*Eingabe!$C$12,0) -> 0 | T49: 0 | U49: 0 | W49: 54 | X49: 0.06056254867 | Y49: 0.06689082035 | Z49: 0.06935720244 | AA49: 98
D50: 0 | E50: 3 | F50: 3 | G50: 10 | H50: 201361.2261 | I50: =H50*Eingabe!$C$11/12 -> 251.7015326 | J50: 906.5833333 | K50: 654.8818007 | L50: 906.5833333 | M50: 200706.3443 | N50: 2553.684222 | P50: =IF(R50>0,Ausgabe!$E$13*12,0) -> 0 | Q50: 46 | R50: 0 | S50: =IF(R50>0,$H$5*Eingabe!$C$12,0) -> 0 | T50: 0 | U50: 0 | W50: 55 | X50: 0.0624224638 | Y50: 0.06697088209 | Z50: 0.06877868033 | AA50: 86
D51: 0 | E51: 3 | F51: 3 | G51: 11 | H51: 200706.3443 | I51: =H51*Eingabe!$C$11/12 -> 250.8829304 | J51: 906.5833333 | K51: 655.7004029 | L51: 906.5833333 | M51: 200050.6439 | N51: 2804.567153 | P51: =IF(R51>0,Ausgabe!$E$13*12,0) -> 0 | Q51: 47 | R51: 0 | S51: =IF(R51>0,$H$5*Eingabe!$C$12,0) -> 0 | T51: 0 | U51: 0 | W51: 56 | X51: 0.06380301591 | Y51: 0.0668743771 | Z51: 0.06838120015 | AA51: 74
D52: 0 | E52: 4 | F52: 3 | G52: 12 | H52: 200050.6439 | I52: =H52*Eingabe!$C$11/12 -> 250.0633049 | J52: 906.5833333 | K52: 656.5200284 | L52: 906.5833333 | M52: 199394.1239 | N52: 3054.630457 | P52: =IF(R52>0,Ausgabe!$E$13*12,0) -> 0 | Q52: 48 | R52: 0 | S52: =IF(R52>0,$H$5*Eingabe!$C$12,0) -> 0 | T52: 0 | U52: 0 | W52: 57 | X52: 0.06415946419 | Y52: 0.06669976594 | Z52: 0.06776790989 | AA52: 62
D53: 0 | E53: 4 | F53: 4 | G53: 1 | H53: 199394.1239 | I53: =H53*Eingabe!$C$11/12 -> 249.2426549 | J53: 906.5833333 | K53: 657.3406785 | L53: 906.5833333 | M53: 198736.7832 | N53: 249.2426549 | P53: =IF(R53>0,Ausgabe!$E$13*12,0) -> 0 | Q53: 49 | R53: 0 | S53: =IF(R53>0,$H$5*Eingabe!$C$12,0) -> 0 | T53: 0 | U53: 0 | W53: 58 | X53: 0.06530764056 | Y53: 0.06644608485 | Z53: 0.06710008218 | AA53: 50
D54: 0 | E54: 4 | F54: 4 | G54: 2 | H54: 198736.7832 | I54: =H54*Eingabe!$C$11/12 -> 248.420979 | J54: 906.5833333 | K54: 658.1623543 | L54: 906.5833333 | M54: 198078.6209 | N54: 497.6636339 | P54: =IF(R54>0,Ausgabe!$E$13*12,0) -> 0 | Q54: 50 | R54: 0 | S54: =IF(R54>0,$H$5*Eingabe!$C$12,0) -> 0 | T54: 0 | U54: 0 | W54: 59 | X54: 0.06571007077 | Y54: 0.06594865491 | Z54: 0.06658817785 | AA54: 38
D55: 0 | E55: 4 | F55: 4 | G55: 3 | H55: 198078.6209 | I55: =H55*Eingabe!$C$11/12 -> 247.5982761 | J55: 906.5833333 | K55: 658.9850573 | L55: 906.5833333 | M55: 197419.6358 | N55: 745.2619099 | P55: =IF(R55>0,Ausgabe!$E$13*12,0) -> 0 | Q55: 51 | R55: 0 | S55: =IF(R55>0,$H$5*Eingabe!$C$12,0) -> 0 | T55: 0 | U55: 0 | W55: 60 | X55: 0.06496028096 | Y55: 0.0653106031 | Z55: 0.066028009 | AA55: 26
D56: 0 | E56: 4 | F56: 4 | G56: 4 | H56: 197419.6358 | I56: =H56*Eingabe!$C$11/12 -> 246.7745447 | J56: 906.5833333 | K56: 659.8087886 | L56: 906.5833333 | M56: 196759.827 | N56: 992.0364547 | P56: =IF(R56>0,Ausgabe!$E$13*12,0) -> 0 | Q56: 52 | R56: 0 | S56: =IF(R56>0,$H$5*Eingabe!$C$12,0) -> 0 | T56: 0 | U56: 0 | W56: 61 | X56: keine Daten vorhanden | Y56: keine Daten vorhanden | Z56: keine Daten vorhanden | AA56: keine Daten vorhanden
D57: 0 | E57: 4 | F57: 4 | G57: 5 | H57: 196759.827 | I57: =H57*Eingabe!$C$11/12 -> 245.9497838 | J57: 906.5833333 | K57: 660.6335496 | L57: 906.5833333 | M57: 196099.1935 | N57: 1237.986238 | P57: =IF(R57>0,Ausgabe!$E$13*12,0) -> 0 | Q57: 53 | R57: 0 | S57: =IF(R57>0,$H$5*Eingabe!$C$12,0) -> 0 | T57: 0 | U57: 0
D58: 0 | E58: 4 | F58: 4 | G58: 6 | H58: 196099.1935 | I58: =H58*Eingabe!$C$11/12 -> 245.1239918 | J58: 906.5833333 | K58: 661.4593415 | L58: 906.5833333 | M58: 195437.7341 | N58: 1483.11023 | P58: =IF(R58>0,Ausgabe!$E$13*12,0) -> 0 | Q58: 54 | R58: 0 | S58: =IF(R58>0,$H$5*Eingabe!$C$12,0) -> 0 | T58: 0 | U58: 0
D59: 0 | E59: 4 | F59: 4 | G59: 7 | H59: 195437.7341 | I59: =H59*Eingabe!$C$11/12 -> 244.2971676 | J59: 906.5833333 | K59: 662.2861657 | L59: 906.5833333 | M59: 194775.448 | N59: 1727.407398 | P59: =IF(R59>0,Ausgabe!$E$13*12,0) -> 0 | Q59: 55 | R59: 0 | S59: =IF(R59>0,$H$5*Eingabe!$C$12,0) -> 0 | T59: 0 | U59: 0
D60: 0 | E60: 4 | F60: 4 | G60: 8 | H60: 194775.448 | I60: =H60*Eingabe!$C$11/12 -> 243.4693099 | J60: 906.5833333 | K60: 663.1140234 | L60: 906.5833333 | M60: 194112.3339 | N60: 1970.876708 | P60: =IF(R60>0,Ausgabe!$E$13*12,0) -> 0 | Q60: 56 | R60: 0 | S60: =IF(R60>0,$H$5*Eingabe!$C$12,0) -> 0 | T60: 0 | U60: 0
D61: 0 | E61: 4 | F61: 4 | G61: 9 | H61: 194112.3339 | I61: =H61*Eingabe!$C$11/12 -> 242.6404174 | J61: 906.5833333 | K61: 663.9429159 | L61: 906.5833333 | M61: 193448.391 | N61: 2213.517125 | P61: =IF(R61>0,Ausgabe!$E$13*12,0) -> 0 | Q61: 57 | R61: 0 | S61: =IF(R61>0,$H$5*Eingabe!$C$12,0) -> 0 | T61: 0 | U61: 0
D62: 0 | E62: 4 | F62: 4 | G62: 10 | H62: 193448.391 | I62: =H62*Eingabe!$C$11/12 -> 241.8104888 | J62: 906.5833333 | K62: 664.7728446 | L62: 906.5833333 | M62: 192783.6182 | N62: 2455.327614 | P62: =IF(R62>0,Ausgabe!$E$13*12,0) -> 0 | Q62: 58 | R62: 0 | S62: =IF(R62>0,$H$5*Eingabe!$C$12,0) -> 0 | T62: 0 | U62: 0
D63: 0 | E63: 4 | F63: 4 | G63: 11 | H63: 192783.6182 | I63: =H63*Eingabe!$C$11/12 -> 240.9795227 | J63: 906.5833333 | K63: 665.6038106 | L63: 906.5833333 | M63: 192118.0144 | N63: 2696.307137 | P63: =IF(R63>0,Ausgabe!$E$13*12,0) -> 0 | Q63: 59 | R63: 0 | S63: =IF(R63>0,$H$5*Eingabe!$C$12,0) -> 0 | T63: 0 | U63: 0
D64: 0 | E64: 5 | F64: 4 | G64: 12 | H64: 192118.0144 | I64: =H64*Eingabe!$C$11/12 -> 240.1475179 | J64: 906.5833333 | K64: 666.4358154 | L64: 906.5833333 | M64: 191451.5785 | N64: 2936.454655 | P64: =IF(R64>0,Ausgabe!$E$13*12,0) -> 0 | Q64: 60 | R64: 0 | S64: =IF(R64>0,$H$5*Eingabe!$C$12,0) -> 0 | T64: 0 | U64: 0
D65: 0 | E65: 5 | F65: 5 | G65: 1 | H65: 191451.5785 | I65: =H65*Eingabe!$C$11/12 -> 239.3144732 | J65: 906.5833333 | K65: 667.2688602 | L65: 906.5833333 | M65: 190784.3097 | N65: 239.3144732 | P65: =IF(R65>0,Ausgabe!$E$13*12,0) -> 0 | Q65: 61 | R65: 0 | S65: =IF(R65>0,$H$5*Eingabe!$C$12,0) -> 0 | T65: 0 | U65: 0
D66: 0 | E66: 5 | F66: 5 | G66: 2 | H66: 190784.3097 | I66: =H66*Eingabe!$C$11/12 -> 238.4803871 | J66: 906.5833333 | K66: 668.1029462 | L66: 906.5833333 | M66: 190116.2067 | N66: 477.7948603 | P66: =IF(R66>0,Ausgabe!$E$13*12,0) -> 0 | Q66: 62 | R66: 0 | S66: =IF(R66>0,$H$5*Eingabe!$C$12,0) -> 0 | T66: 0 | U66: 0
D67: 0 | E67: 5 | F67: 5 | G67: 3 | H67: 190116.2067 | I67: =H67*Eingabe!$C$11/12 -> 237.6452584 | J67: 906.5833333 | K67: 668.9380749 | L67: 906.5833333 | M67: 189447.2687 | N67: 715.4401187 | P67: =IF(R67>0,Ausgabe!$E$13*12,0) -> 0 | Q67: 63 | R67: 0 | S67: =IF(R67>0,$H$5*Eingabe!$C$12,0) -> 0 | T67: 0 | U67: 0
D68: 0 | E68: 5 | F68: 5 | G68: 4 | H68: 189447.2687 | I68: =H68*Eingabe!$C$11/12 -> 236.8090858 | J68: 906.5833333 | K68: 669.7742475 | L68: 906.5833333 | M68: 188777.4944 | N68: 952.2492045 | P68: =IF(R68>0,Ausgabe!$E$13*12,0) -> 0 | Q68: 64 | R68: 0 | S68: =IF(R68>0,$H$5*Eingabe!$C$12,0) -> 0 | T68: 0 | U68: 0
D69: =IF(AND(M69=0,M68>0),1,0) -> 0 | E69: 5 | F69: 5 | G69: 5 | H69: 188777.4944 | I69: =H69*Eingabe!$C$11/12 -> 235.971868 | J69: 906.5833333 | K69: 670.6114653 | L69: 906.5833333 | M69: 188106.8829 | N69: 1188.221073 | P69: =IF(R69>0,Ausgabe!$E$13*12,0) -> 0 | Q69: 65 | R69: =VLOOKUP(Q69,E68:N860,10,FALSE) -> 0 | S69: =IF(R69>0,$H$5*Eingabe!$C$12,0) -> 0 | T69: 0 | U69: 0
D70: 0 | E70: 5 | F70: 5 | G70: 6 | H70: 188106.8829 | I70: =H70*Eingabe!$C$11/12 -> 235.1336037 | J70: =IF(H70=0,0,J69) -> 906.5833333 | K70: 671.4497297 | L70: 906.5833333 | M70: =IF(H70-K70<=0,0,H70-K70) -> 187435.4332 | N70: =IF(G70=1,I70,I70+N69) -> 1423.354676
D71: 0 | E71: =IF(G71=12,1+E70,E70) -> 5 | F71: 5 | G71: 7 | H71: =M70 -> 187435.4332 | I71: =H71*Eingabe!$C$11/12 -> 234.2942915 | J71: 906.5833333 | K71: =J71-I71 -> 672.2890418 | L71: =I71+K71 -> 906.5833333 | M71: 186763.1442 | N71: 1657.648968
D72: 0 | E72: 5 | F72: 5 | G72: 8 | H72: 186763.1442 | I72: =H72*Eingabe!$C$11/12 -> 233.4539302 | J72: 906.5833333 | K72: 673.1294031 | L72: 906.5833333 | M72: 186090.0148 | N72: 1891.102898
D73: 0 | E73: 5 | F73: 5 | G73: 9 | H73: 186090.0148 | I73: =H73*Eingabe!$C$11/12 -> 232.6125185 | J73: 906.5833333 | K73: 673.9708149 | L73: 906.5833333 | M73: 185416.044 | N73: 2123.715416
D74: 0 | E74: 5 | F74: 5 | G74: 10 | H74: 185416.044 | I74: =H74*Eingabe!$C$11/12 -> 231.7700549 | J74: 906.5833333 | K74: 674.8132784 | L74: 906.5833333 | M74: 184741.2307 | N74: 2355.485471
D75: 0 | E75: 5 | F75: 5 | G75: 11 | H75: 184741.2307 | I75: =H75*Eingabe!$C$11/12 -> 230.9265383 | J75: 906.5833333 | K75: 675.656795 | L75: 906.5833333 | M75: 184065.5739 | N75: 2586.41201
D76: 0 | E76: 6 | F76: 5 | G76: 12 | H76: 184065.5739 | I76: =H76*Eingabe!$C$11/12 -> 230.0819674 | J76: 906.5833333 | K76: 676.501366 | L76: 906.5833333 | M76: 183389.0725 | N76: 2816.493977
D77: 0 | E77: 6 | F77: 6 | G77: 1 | H77: 183389.0725 | I77: =H77*Eingabe!$C$11/12 -> 229.2363406 | J77: 906.5833333 | K77: 677.3469927 | L77: 906.5833333 | M77: 182711.7255 | N77: 229.2363406
D78: 0 | E78: 6 | F78: 6 | G78: 2 | H78: 182711.7255 | I78: =H78*Eingabe!$C$11/12 -> 228.3896569 | J78: 906.5833333 | K78: 678.1936764 | L78: 906.5833333 | M78: 182033.5318 | N78: 457.6259976
D79: 0 | E79: 6 | F79: 6 | G79: 3 | H79: 182033.5318 | I79: =H79*Eingabe!$C$11/12 -> 227.5419148 | J79: 906.5833333 | K79: 679.0414185 | L79: 906.5833333 | M79: 181354.4904 | N79: 685.1679124
D80: 0 | E80: 6 | F80: 6 | G80: 4 | H80: 181354.4904 | I80: =H80*Eingabe!$C$11/12 -> 226.693113 | J80: 906.5833333 | K80: 679.8902203 | L80: 906.5833333 | M80: 180674.6002 | N80: 911.8610254
D81: 0 | E81: 6 | F81: 6 | G81: 5 | H81: 180674.6002 | I81: =H81*Eingabe!$C$11/12 -> 225.8432503 | J81: 906.5833333 | K81: 680.7400831 | L81: 906.5833333 | M81: 179993.8601 | N81: 1137.704276
D82: 0 | E82: 6 | F82: 6 | G82: 6 | H82: 179993.8601 | I82: =H82*Eingabe!$C$11/12 -> 224.9923252 | J82: 906.5833333 | K82: 681.5910082 | L82: 906.5833333 | M82: 179312.2691 | N82: 1362.696601
D83: 0 | E83: 6 | F83: 6 | G83: 7 | H83: 179312.2691 | I83: =H83*Eingabe!$C$11/12 -> 224.1403364 | J83: 906.5833333 | K83: 682.4429969 | L83: 906.5833333 | M83: 178629.8261 | N83: 1586.836937
D84: 0 | E84: 6 | F84: 6 | G84: 8 | H84: 178629.8261 | I84: =H84*Eingabe!$C$11/12 -> 223.2872827 | J84: 906.5833333 | K84: 683.2960507 | L84: 906.5833333 | M84: 177946.5301 | N84: 1810.12422
D85: 0 | E85: 6 | F85: 6 | G85: 9 | H85: 177946.5301 | I85: =H85*Eingabe!$C$11/12 -> 222.4331626 | J85: 906.5833333 | K85: 684.1501707 | L85: 906.5833333 | M85: 177262.3799 | N85: 2032.557382
D86: 0 | E86: 6 | F86: 6 | G86: 10 | H86: 177262.3799 | I86: =H86*Eingabe!$C$11/12 -> 221.5779749 | J86: 906.5833333 | K86: 685.0053585 | L86: 906.5833333 | M86: 176577.3745 | N86: 2254.135357
D87: 0 | E87: 6 | F87: 6 | G87: 11 | H87: 176577.3745 | I87: =H87*Eingabe!$C$11/12 -> 220.7217182 | J87: 906.5833333 | K87: 685.8616152 | L87: 906.5833333 | M87: 175891.5129 | N87: 2474.857076
D88: 0 | E88: 7 | F88: 6 | G88: 12 | H88: 175891.5129 | I88: =H88*Eingabe!$C$11/12 -> 219.8643912 | J88: 906.5833333 | K88: 686.7189422 | L88: 906.5833333 | M88: 175204.794 | N88: 2694.721467
D89: 0 | E89: 7 | F89: 7 | G89: 1 | H89: 175204.794 | I89: =H89*Eingabe!$C$11/12 -> 219.0059925 | J89: 906.5833333 | K89: 687.5773409 | L89: 906.5833333 | M89: 174517.2166 | N89: 219.0059925
D90: 0 | E90: 7 | F90: 7 | G90: 2 | H90: 174517.2166 | I90: =H90*Eingabe!$C$11/12 -> 218.1465208 | J90: 906.5833333 | K90: 688.4368125 | L90: 906.5833333 | M90: 173828.7798 | N90: 437.1525133
D91: 0 | E91: 7 | F91: 7 | G91: 3 | H91: 173828.7798 | I91: =H91*Eingabe!$C$11/12 -> 217.2859748 | J91: 906.5833333 | K91: 689.2973585 | L91: 906.5833333 | M91: 173139.4825 | N91: 654.4384881
D92: 0 | E92: 7 | F92: 7 | G92: 4 | H92: 173139.4825 | I92: =H92*Eingabe!$C$11/12 -> 216.4243531 | J92: 906.5833333 | K92: 690.1589802 | L92: 906.5833333 | M92: 172449.3235 | N92: 870.8628412
D93: 0 | E93: 7 | F93: 7 | G93: 5 | H93: 172449.3235 | I93: =H93*Eingabe!$C$11/12 -> 215.5616544 | J93: 906.5833333 | K93: 691.021679 | L93: 906.5833333 | M93: 171758.3018 | N93: 1086.424496
D94: 0 | E94: 7 | F94: 7 | G94: 6 | H94: 171758.3018 | I94: =H94*Eingabe!$C$11/12 -> 214.6978773 | J94: 906.5833333 | K94: 691.8854561 | L94: 906.5833333 | M94: 171066.4164 | N94: 1301.122373
D95: 0 | E95: 7 | F95: 7 | G95: 7 | H95: 171066.4164 | I95: =H95*Eingabe!$C$11/12 -> 213.8330204 | J95: 906.5833333 | K95: 692.7503129 | L95: 906.5833333 | M95: 170373.666 | N95: 1514.955393
D96: 0 | E96: 7 | F96: 7 | G96: 8 | H96: 170373.666 | I96: =H96*Eingabe!$C$11/12 -> 212.9670826 | J96: 906.5833333 | K96: 693.6162508 | L96: 906.5833333 | M96: 169680.0498 | N96: 1727.922476
D97: 0 | E97: 7 | F97: 7 | G97: 9 | H97: 169680.0498 | I97: =H97*Eingabe!$C$11/12 -> 212.1000622 | J97: 906.5833333 | K97: 694.4832711 | L97: 906.5833333 | M97: 168985.5665 | N97: 1940.022538
D98: 0 | E98: 7 | F98: 7 | G98: 10 | H98: 168985.5665 | I98: =H98*Eingabe!$C$11/12 -> 211.2319582 | J98: 906.5833333 | K98: 695.3513752 | L98: 906.5833333 | M98: 168290.2151 | N98: 2151.254496
D99: 0 | E99: 7 | F99: 7 | G99: 11 | H99: 168290.2151 | I99: =H99*Eingabe!$C$11/12 -> 210.3627689 | J99: 906.5833333 | K99: 696.2205644 | L99: 906.5833333 | M99: 167593.9946 | N99: 2361.617265
D100: 0 | E100: 8 | F100: 7 | G100: 12 | H100: 167593.9946 | I100: =H100*Eingabe!$C$11/12 -> 209.4924932 | J100: 906.5833333 | K100: 697.0908401 | L100: 906.5833333 | M100: 166896.9037 | N100: 2571.109758
D101: 0 | E101: 8 | F101: 8 | G101: 1 | H101: 166896.9037 | I101: =H101*Eingabe!$C$11/12 -> 208.6211297 | J101: 906.5833333 | K101: 697.9622037 | L101: 906.5833333 | M101: 166198.9415 | N101: 208.6211297
D102: 0 | E102: 8 | F102: 8 | G102: 2 | H102: 166198.9415 | I102: =H102*Eingabe!$C$11/12 -> 207.7486769 | J102: 906.5833333 | K102: 698.8346564 | L102: 906.5833333 | M102: 165500.1069 | N102: 416.3698066
D103: 0 | E103: 8 | F103: 8 | G103: 3 | H103: 165500.1069 | I103: =H103*Eingabe!$C$11/12 -> 206.8751336 | J103: 906.5833333 | K103: 699.7081997 | L103: 906.5833333 | M103: 164800.3987 | N103: 623.2449402
D104: 0 | E104: 8 | F104: 8 | G104: 4 | H104: 164800.3987 | I104: =H104*Eingabe!$C$11/12 -> 206.0004984 | J104: 906.5833333 | K104: 700.582835 | L104: 906.5833333 | M104: 164099.8158 | N104: 829.2454386
D105: 0 | E105: 8 | F105: 8 | G105: 5 | H105: 164099.8158 | I105: =H105*Eingabe!$C$11/12 -> 205.1247698 | J105: 906.5833333 | K105: 701.4585635 | L105: 906.5833333 | M105: 163398.3573 | N105: 1034.370208
D106: 0 | E106: 8 | F106: 8 | G106: 6 | H106: 163398.3573 | I106: =H106*Eingabe!$C$11/12 -> 204.2479466 | J106: 906.5833333 | K106: 702.3353867 | L106: 906.5833333 | M106: 162696.0219 | N106: 1238.618155
D107: 0 | E107: 8 | F107: 8 | G107: 7 | H107: 162696.0219 | I107: =H107*Eingabe!$C$11/12 -> 203.3700274 | J107: 906.5833333 | K107: 703.213306 | L107: 906.5833333 | M107: 161992.8086 | N107: 1441.988182
D108: 0 | E108: 8 | F108: 8 | G108: 8 | H108: 161992.8086 | I108: =H108*Eingabe!$C$11/12 -> 202.4910107 | J108: 906.5833333 | K108: 704.0923226 | L108: 906.5833333 | M108: 161288.7163 | N108: 1644.479193
D109: 0 | E109: 8 | F109: 8 | G109: 9 | H109: 161288.7163 | I109: =H109*Eingabe!$C$11/12 -> 201.6108953 | J109: 906.5833333 | K109: 704.972438 | L109: 906.5833333 | M109: 160583.7438 | N109: 1846.090088
D110: 0 | E110: 8 | F110: 8 | G110: 10 | H110: 160583.7438 | I110: =H110*Eingabe!$C$11/12 -> 200.7296798 | J110: 906.5833333 | K110: 705.8536535 | L110: 906.5833333 | M110: 159877.8902 | N110: 2046.819768
D111: 0 | E111: 8 | F111: 8 | G111: 11 | H111: 159877.8902 | I111: =H111*Eingabe!$C$11/12 -> 199.8473627 | J111: 906.5833333 | K111: 706.7359706 | L111: 906.5833333 | M111: 159171.1542 | N111: 2246.667131
D112: 0 | E112: 9 | F112: 8 | G112: 12 | H112: 159171.1542 | I112: =H112*Eingabe!$C$11/12 -> 198.9639428 | J112: 906.5833333 | K112: 707.6193906 | L112: 906.5833333 | M112: 158463.5348 | N112: 2445.631074
D113: 0 | E113: 9 | F113: 9 | G113: 1 | H113: 158463.5348 | I113: =H113*Eingabe!$C$11/12 -> 198.0794185 | J113: 906.5833333 | K113: 708.5039148 | L113: 906.5833333 | M113: 157755.0309 | N113: 198.0794185
D114: 0 | E114: 9 | F114: 9 | G114: 2 | H114: 157755.0309 | I114: =H114*Eingabe!$C$11/12 -> 197.1937886 | J114: 906.5833333 | K114: 709.3895447 | L114: 906.5833333 | M114: 157045.6414 | N114: 395.2732071
D115: 0 | E115: 9 | F115: 9 | G115: 3 | H115: 157045.6414 | I115: =H115*Eingabe!$C$11/12 -> 196.3070517 | J115: 906.5833333 | K115: 710.2762816 | L115: 906.5833333 | M115: 156335.3651 | N115: 591.5802588
D116: 0 | E116: 9 | F116: 9 | G116: 4 | H116: 156335.3651 | I116: =H116*Eingabe!$C$11/12 -> 195.4192063 | J116: 906.5833333 | K116: 711.164127 | L116: 906.5833333 | M116: 155624.2009 | N116: 786.9994652
D117: 0 | E117: 9 | F117: 9 | G117: 5 | H117: 155624.2009 | I117: =H117*Eingabe!$C$11/12 -> 194.5302512 | J117: 906.5833333 | K117: 712.0530821 | L117: 906.5833333 | M117: 154912.1479 | N117: 981.5297164
D118: 0 | E118: 9 | F118: 9 | G118: 6 | H118: 154912.1479 | I118: =H118*Eingabe!$C$11/12 -> 193.6401848 | J118: 906.5833333 | K118: 712.9431485 | L118: 906.5833333 | M118: 154199.2047 | N118: 1175.169901
D119: 0 | E119: 9 | F119: 9 | G119: 7 | H119: 154199.2047 | I119: =H119*Eingabe!$C$11/12 -> 192.7490059 | J119: 906.5833333 | K119: 713.8343274 | L119: 906.5833333 | M119: 153485.3704 | N119: 1367.918907
D120: 0 | E120: 9 | F120: 9 | G120: 8 | H120: 153485.3704 | I120: =H120*Eingabe!$C$11/12 -> 191.856713 | J120: 906.5833333 | K120: 714.7266203 | L120: 906.5833333 | M120: 152770.6438 | N120: 1559.77562
D121: 0 | E121: 9 | F121: 9 | G121: 9 | H121: 152770.6438 | I121: =H121*Eingabe!$C$11/12 -> 190.9633047 | J121: 906.5833333 | K121: 715.6200286 | L121: 906.5833333 | M121: 152055.0237 | N121: 1750.738925
D122: 0 | E122: 9 | F122: 9 | G122: 10 | H122: 152055.0237 | I122: =H122*Eingabe!$C$11/12 -> 190.0687797 | J122: 906.5833333 | K122: 716.5145537 | L122: 906.5833333 | M122: 151338.5092 | N122: 1940.807704
D123: 0 | E123: 9 | F123: 9 | G123: 11 | H123: 151338.5092 | I123: =H123*Eingabe!$C$11/12 -> 189.1731365 | J123: 906.5833333 | K123: 717.4101968 | L123: 906.5833333 | M123: 150621.099 | N123: 2129.980841
D124: 0 | E124: 10 | F124: 9 | G124: 12 | H124: 150621.099 | I124: =H124*Eingabe!$C$11/12 -> 188.2763737 | J124: 906.5833333 | K124: 718.3069596 | L124: 906.5833333 | M124: 149902.792 | N124: 2318.257215
D125: 0 | E125: 10 | F125: 10 | G125: 1 | H125: 149902.792 | I125: =H125*Eingabe!$C$11/12 -> 187.37849 | J125: 906.5833333 | K125: 719.2048433 | L125: 906.5833333 | M125: 149183.5872 | N125: 187.37849
D126: 0 | E126: 10 | F126: 10 | G126: 2 | H126: 149183.5872 | I126: =H126*Eingabe!$C$11/12 -> 186.479484 | J126: 906.5833333 | K126: 720.1038493 | L126: 906.5833333 | M126: 148463.4833 | N126: 373.857974
D127: 0 | E127: 10 | F127: 10 | G127: 3 | H127: 148463.4833 | I127: =H127*Eingabe!$C$11/12 -> 185.5793542 | J127: 906.5833333 | K127: 721.0039792 | L127: 906.5833333 | M127: 147742.4794 | N127: 559.4373282
D128: 0 | E128: 10 | F128: 10 | G128: 4 | H128: 147742.4794 | I128: =H128*Eingabe!$C$11/12 -> 184.6780992 | J128: 906.5833333 | K128: 721.9052341 | L128: 906.5833333 | M128: 147020.5741 | N128: 744.1154274
D129: 0 | E129: 10 | F129: 10 | G129: 5 | H129: 147020.5741 | I129: =H129*Eingabe!$C$11/12 -> 183.7757177 | J129: 906.5833333 | K129: 722.8076157 | L129: 906.5833333 | M129: 146297.7665 | N129: 927.8911451
D130: 0 | E130: 10 | F130: 10 | G130: 6 | H130: 146297.7665 | I130: =H130*Eingabe!$C$11/12 -> 182.8722081 | J130: 906.5833333 | K130: 723.7111252 | L130: 906.5833333 | M130: 145574.0554 | N130: 1110.763353
D131: 0 | E131: 10 | F131: 10 | G131: 7 | H131: 145574.0554 | I131: =H131*Eingabe!$C$11/12 -> 181.9675692 | J131: 906.5833333 | K131: 724.6157641 | L131: 906.5833333 | M131: 144849.4396 | N131: 1292.730922
D132: 0 | E132: 10 | F132: 10 | G132: 8 | H132: 144849.4396 | I132: =H132*Eingabe!$C$11/12 -> 181.0617995 | J132: 906.5833333 | K132: 725.5215338 | L132: 906.5833333 | M132: 144123.9181 | N132: 1473.792722
D133: =IF(AND(M133=0,M132>0),1,0) -> 0 | E133: 10 | F133: 10 | G133: 9 | H133: 144123.9181 | I133: =H133*Eingabe!$C$11/12 -> 180.1548976 | J133: 906.5833333 | K133: 726.4284357 | L133: 906.5833333 | M133: 143397.4897 | N133: 1653.94762
D134: 0 | E134: 10 | F134: 10 | G134: 10 | H134: 143397.4897 | I134: =H134*Eingabe!$C$11/12 -> 179.2468621 | J134: =IF(H134=0,0,J133) -> 906.5833333 | K134: 727.3364713 | L134: 906.5833333 | M134: =IF(H134-K134<=0,0,H134-K134) -> 142670.1532 | N134: =IF(G134=1,I134,I134+N133) -> 1833.194482
D135: 0 | E135: =IF(G135=12,1+E134,E134) -> 10 | F135: 10 | G135: 11 | H135: =M134 -> 142670.1532 | I135: =H135*Eingabe!$C$11/12 -> 178.3376915 | J135: 906.5833333 | K135: =J135-I135 -> 728.2456419 | L135: =I135+K135 -> 906.5833333 | M135: 141941.9075 | N135: 2011.532173
D136: 0 | E136: 11 | F136: 10 | G136: 12 | H136: 141941.9075 | I136: =H136*Eingabe!$C$11/12 -> 177.4273844 | J136: 906.5833333 | K136: 729.1559489 | L136: 906.5833333 | M136: 141212.7516 | N136: 2188.959558
D137: 0 | E137: 11 | F137: 11 | G137: 1 | H137: 141212.7516 | I137: =H137*Eingabe!$C$11/12 -> 176.5159395 | J137: 906.5833333 | K137: 730.0673938 | L137: 906.5833333 | M137: 140482.6842 | N137: 176.5159395
D138: 0 | E138: 11 | F138: 11 | G138: 2 | H138: 140482.6842 | I138: =H138*Eingabe!$C$11/12 -> 175.6033552 | J138: 906.5833333 | K138: 730.9799781 | L138: 906.5833333 | M138: 139751.7042 | N138: 352.1192947
D139: 0 | E139: 11 | F139: 11 | G139: 3 | H139: 139751.7042 | I139: =H139*Eingabe!$C$11/12 -> 174.6896303 | J139: 906.5833333 | K139: 731.8937031 | L139: 906.5833333 | M139: 139019.8105 | N139: 526.808925
D140: 0 | E140: 11 | F140: 11 | G140: 4 | H140: 139019.8105 | I140: =H140*Eingabe!$C$11/12 -> 173.7747631 | J140: 906.5833333 | K140: 732.8085702 | L140: 906.5833333 | M140: 138287.0019 | N140: 700.5836881
D141: 0 | E141: 11 | F141: 11 | G141: 5 | H141: 138287.0019 | I141: =H141*Eingabe!$C$11/12 -> 172.8587524 | J141: 906.5833333 | K141: 733.7245809 | L141: 906.5833333 | M141: 137553.2774 | N141: 873.4424406
D142: 0 | E142: 11 | F142: 11 | G142: 6 | H142: 137553.2774 | I142: =H142*Eingabe!$C$11/12 -> 171.9415967 | J142: 906.5833333 | K142: 734.6417366 | L142: 906.5833333 | M142: 136818.6356 | N142: 1045.384037
D143: 0 | E143: 11 | F143: 11 | G143: 7 | H143: 136818.6356 | I143: =H143*Eingabe!$C$11/12 -> 171.0232945 | J143: 906.5833333 | K143: 735.5600388 | L143: 906.5833333 | M143: 136083.0756 | N143: 1216.407332
D144: 0 | E144: 11 | F144: 11 | G144: 8 | H144: 136083.0756 | I144: =H144*Eingabe!$C$11/12 -> 170.1038445 | J144: 906.5833333 | K144: 736.4794888 | L144: 906.5833333 | M144: 135346.5961 | N144: 1386.511176
D145: 0 | E145: 11 | F145: 11 | G145: 9 | H145: 135346.5961 | I145: =H145*Eingabe!$C$11/12 -> 169.1832451 | J145: 906.5833333 | K145: 737.4000882 | L145: 906.5833333 | M145: 134609.196 | N145: 1555.694421
D146: 0 | E146: 11 | F146: 11 | G146: 10 | H146: 134609.196 | I146: =H146*Eingabe!$C$11/12 -> 168.261495 | J146: 906.5833333 | K146: 738.3218383 | L146: 906.5833333 | M146: 133870.8742 | N146: 1723.955916
D147: 0 | E147: 11 | F147: 11 | G147: 11 | H147: 133870.8742 | I147: =H147*Eingabe!$C$11/12 -> 167.3385927 | J147: 906.5833333 | K147: 739.2447406 | L147: 906.5833333 | M147: 133131.6294 | N147: 1891.294509
D148: 0 | E148: 12 | F148: 11 | G148: 12 | H148: 133131.6294 | I148: =H148*Eingabe!$C$11/12 -> 166.4145368 | J148: 906.5833333 | K148: 740.1687965 | L148: 906.5833333 | M148: 132391.4606 | N148: 2057.709046
D149: 0 | E149: 12 | F149: 12 | G149: 1 | H149: 132391.4606 | I149: =H149*Eingabe!$C$11/12 -> 165.4893258 | J149: 906.5833333 | K149: 741.0940075 | L149: 906.5833333 | M149: 131650.3666 | N149: 165.4893258
D150: 0 | E150: 12 | F150: 12 | G150: 2 | H150: 131650.3666 | I150: =H150*Eingabe!$C$11/12 -> 164.5629583 | J150: 906.5833333 | K150: 742.020375 | L150: 906.5833333 | M150: 130908.3463 | N150: 330.0522841
D151: 0 | E151: 12 | F151: 12 | G151: 3 | H151: 130908.3463 | I151: =H151*Eingabe!$C$11/12 -> 163.6354328 | J151: 906.5833333 | K151: 742.9479005 | L151: 906.5833333 | M151: 130165.3984 | N151: 493.6877169
D152: 0 | E152: 12 | F152: 12 | G152: 4 | H152: 130165.3984 | I152: =H152*Eingabe!$C$11/12 -> 162.7067479 | J152: 906.5833333 | K152: 743.8765854 | L152: 906.5833333 | M152: 129421.5218 | N152: 656.3944648
D153: 0 | E153: 12 | F153: 12 | G153: 5 | H153: 129421.5218 | I153: =H153*Eingabe!$C$11/12 -> 161.7769022 | J153: 906.5833333 | K153: 744.8064311 | L153: 906.5833333 | M153: 128676.7153 | N153: 818.171367
D154: 0 | E154: 12 | F154: 12 | G154: 6 | H154: 128676.7153 | I154: =H154*Eingabe!$C$11/12 -> 160.8458942 | J154: 906.5833333 | K154: 745.7374392 | L154: 906.5833333 | M154: 127930.9779 | N154: 979.0172612
D155: 0 | E155: 12 | F155: 12 | G155: 7 | H155: 127930.9779 | I155: =H155*Eingabe!$C$11/12 -> 159.9137224 | J155: 906.5833333 | K155: 746.669611 | L155: 906.5833333 | M155: 127184.3083 | N155: 1138.930984
D156: 0 | E156: 12 | F156: 12 | G156: 8 | H156: 127184.3083 | I156: =H156*Eingabe!$C$11/12 -> 158.9803854 | J156: 906.5833333 | K156: 747.602948 | L156: 906.5833333 | M156: 126436.7053 | N156: 1297.911369
D157: 0 | E157: 12 | F157: 12 | G157: 9 | H157: 126436.7053 | I157: =H157*Eingabe!$C$11/12 -> 158.0458817 | J157: 906.5833333 | K157: 748.5374517 | L157: 906.5833333 | M157: 125688.1679 | N157: 1455.957251
D158: 0 | E158: 12 | F158: 12 | G158: 10 | H158: 125688.1679 | I158: =H158*Eingabe!$C$11/12 -> 157.1102099 | J158: 906.5833333 | K158: 749.4731235 | L158: 906.5833333 | M158: 124938.6948 | N158: 1613.06746
D159: 0 | E159: 12 | F159: 12 | G159: 11 | H159: 124938.6948 | I159: =H159*Eingabe!$C$11/12 -> 156.1733685 | J159: 906.5833333 | K159: 750.4099649 | L159: 906.5833333 | M159: 124188.2848 | N159: 1769.240829
D160: 0 | E160: 13 | F160: 12 | G160: 12 | H160: 124188.2848 | I160: =H160*Eingabe!$C$11/12 -> 155.235356 | J160: 906.5833333 | K160: 751.3479773 | L160: 906.5833333 | M160: 123436.9368 | N160: 1924.476185
D161: 0 | E161: 13 | F161: 13 | G161: 1 | H161: 123436.9368 | I161: =H161*Eingabe!$C$11/12 -> 154.296171 | J161: 906.5833333 | K161: 752.2871623 | L161: 906.5833333 | M161: 122684.6497 | N161: 154.296171
D162: 0 | E162: 13 | F162: 13 | G162: 2 | H162: 122684.6497 | I162: =H162*Eingabe!$C$11/12 -> 153.3558121 | J162: 906.5833333 | K162: 753.2275213 | L162: 906.5833333 | M162: 121931.4221 | N162: 307.6519831
D163: 0 | E163: 13 | F163: 13 | G163: 3 | H163: 121931.4221 | I163: =H163*Eingabe!$C$11/12 -> 152.4142777 | J163: 906.5833333 | K163: 754.1690557 | L163: 906.5833333 | M163: 121177.2531 | N163: 460.0662608
D164: 0 | E164: 13 | F164: 13 | G164: 4 | H164: 121177.2531 | I164: =H164*Eingabe!$C$11/12 -> 151.4715663 | J164: 906.5833333 | K164: 755.111767 | L164: 906.5833333 | M164: 120422.1413 | N164: 611.5378271
D165: 0 | E165: 13 | F165: 13 | G165: 5 | H165: 120422.1413 | I165: =H165*Eingabe!$C$11/12 -> 150.5276766 | J165: 906.5833333 | K165: 756.0556567 | L165: 906.5833333 | M165: 119666.0857 | N165: 762.0655038
D166: 0 | E166: 13 | F166: 13 | G166: 6 | H166: 119666.0857 | I166: =H166*Eingabe!$C$11/12 -> 149.5826071 | J166: 906.5833333 | K166: 757.0007263 | L166: 906.5833333 | M166: 118909.0849 | N166: 911.6481108
D167: 0 | E167: 13 | F167: 13 | G167: 7 | H167: 118909.0849 | I167: =H167*Eingabe!$C$11/12 -> 148.6363562 | J167: 906.5833333 | K167: 757.9469772 | L167: 906.5833333 | M167: 118151.138 | N167: 1060.284467
D168: 0 | E168: 13 | F168: 13 | G168: 8 | H168: 118151.138 | I168: =H168*Eingabe!$C$11/12 -> 147.6889224 | J168: 906.5833333 | K168: 758.8944109 | L168: 906.5833333 | M168: 117392.2435 | N168: 1207.973389
D169: 0 | E169: 13 | F169: 13 | G169: 9 | H169: 117392.2435 | I169: =H169*Eingabe!$C$11/12 -> 146.7403044 | J169: 906.5833333 | K169: 759.8430289 | L169: 906.5833333 | M169: 116632.4005 | N169: 1354.713694
D170: 0 | E170: 13 | F170: 13 | G170: 10 | H170: 116632.4005 | I170: =H170*Eingabe!$C$11/12 -> 145.7905006 | J170: 906.5833333 | K170: 760.7928327 | L170: 906.5833333 | M170: 115871.6077 | N170: 1500.504194
D171: 0 | E171: 13 | F171: 13 | G171: 11 | H171: 115871.6077 | I171: =H171*Eingabe!$C$11/12 -> 144.8395096 | J171: 906.5833333 | K171: 761.7438237 | L171: 906.5833333 | M171: 115109.8639 | N171: 1645.343704
D172: 0 | E172: 14 | F172: 13 | G172: 12 | H172: 115109.8639 | I172: =H172*Eingabe!$C$11/12 -> 143.8873298 | J172: 906.5833333 | K172: 762.6960035 | L172: 906.5833333 | M172: 114347.1679 | N172: 1789.231034
D173: 0 | E173: 14 | F173: 14 | G173: 1 | H173: 114347.1679 | I173: =H173*Eingabe!$C$11/12 -> 142.9339598 | J173: 906.5833333 | K173: 763.6493735 | L173: 906.5833333 | M173: 113583.5185 | N173: 142.9339598
D174: 0 | E174: 14 | F174: 14 | G174: 2 | H174: 113583.5185 | I174: =H174*Eingabe!$C$11/12 -> 141.9793981 | J174: 906.5833333 | K174: 764.6039352 | L174: 906.5833333 | M174: 112818.9145 | N174: 284.9133579
D175: 0 | E175: 14 | F175: 14 | G175: 3 | H175: 112818.9145 | I175: =H175*Eingabe!$C$11/12 -> 141.0236432 | J175: 906.5833333 | K175: 765.5596902 | L175: 906.5833333 | M175: 112053.3549 | N175: 425.9370011
D176: 0 | E176: 14 | F176: 14 | G176: 4 | H176: 112053.3549 | I176: =H176*Eingabe!$C$11/12 -> 140.0666936 | J176: 906.5833333 | K176: 766.5166398 | L176: 906.5833333 | M176: 111286.8382 | N176: 566.0036947
D177: 0 | E177: 14 | F177: 14 | G177: 5 | H177: 111286.8382 | I177: =H177*Eingabe!$C$11/12 -> 139.1085478 | J177: 906.5833333 | K177: 767.4747856 | L177: 906.5833333 | M177: 110519.3634 | N177: 705.1122424
D178: 0 | E178: 14 | F178: 14 | G178: 6 | H178: 110519.3634 | I178: =H178*Eingabe!$C$11/12 -> 138.1492043 | J178: 906.5833333 | K178: 768.434129 | L178: 906.5833333 | M178: 109750.9293 | N178: 843.2614467
D179: 0 | E179: 14 | F179: 14 | G179: 7 | H179: 109750.9293 | I179: =H179*Eingabe!$C$11/12 -> 137.1886616 | J179: 906.5833333 | K179: 769.3946717 | L179: 906.5833333 | M179: 108981.5346 | N179: 980.4501083
D180: 0 | E180: 14 | F180: 14 | G180: 8 | H180: 108981.5346 | I180: =H180*Eingabe!$C$11/12 -> 136.2269183 | J180: 906.5833333 | K180: 770.356415 | L180: 906.5833333 | M180: 108211.1782 | N180: 1116.677027
D181: 0 | E181: 14 | F181: 14 | G181: 9 | H181: 108211.1782 | I181: =H181*Eingabe!$C$11/12 -> 135.2639728 | J181: 906.5833333 | K181: 771.3193606 | L181: 906.5833333 | M181: 107439.8589 | N181: 1251.940999
D182: 0 | E182: 14 | F182: 14 | G182: 10 | H182: 107439.8589 | I182: =H182*Eingabe!$C$11/12 -> 134.2998236 | J182: 906.5833333 | K182: 772.2835098 | L182: 906.5833333 | M182: 106667.5753 | N182: 1386.240823
D183: 0 | E183: 14 | F183: 14 | G183: 11 | H183: 106667.5753 | I183: =H183*Eingabe!$C$11/12 -> 133.3344692 | J183: 906.5833333 | K183: 773.2488642 | L183: 906.5833333 | M183: 105894.3265 | N183: 1519.575292
D184: 0 | E184: 15 | F184: 14 | G184: 12 | H184: 105894.3265 | I184: =H184*Eingabe!$C$11/12 -> 132.3679081 | J184: 906.5833333 | K184: 774.2154252 | L184: 906.5833333 | M184: 105120.1111 | N184: 1651.9432
D185: 0 | E185: 15 | F185: 15 | G185: 1 | H185: 105120.1111 | I185: =H185*Eingabe!$C$11/12 -> 131.4001388 | J185: 906.5833333 | K185: 775.1831945 | L185: 906.5833333 | M185: 104344.9279 | N185: 131.4001388
D186: 0 | E186: 15 | F186: 15 | G186: 2 | H186: 104344.9279 | I186: =H186*Eingabe!$C$11/12 -> 130.4311598 | J186: 906.5833333 | K186: 776.1521735 | L186: 906.5833333 | M186: 103568.7757 | N186: 261.8312986
D187: 0 | E187: 15 | F187: 15 | G187: 3 | H187: 103568.7757 | I187: =H187*Eingabe!$C$11/12 -> 129.4609696 | J187: 906.5833333 | K187: 777.1223637 | L187: 906.5833333 | M187: 102791.6533 | N187: 391.2922682
D188: 0 | E188: 15 | F188: 15 | G188: 4 | H188: 102791.6533 | I188: =H188*Eingabe!$C$11/12 -> 128.4895667 | J188: 906.5833333 | K188: 778.0937667 | L188: 906.5833333 | M188: 102013.5596 | N188: 519.7818349
D189: 0 | E189: 15 | F189: 15 | G189: 5 | H189: 102013.5596 | I189: =H189*Eingabe!$C$11/12 -> 127.5169494 | J189: 906.5833333 | K189: 779.0663839 | L189: 906.5833333 | M189: 101234.4932 | N189: 647.2987843
D190: 0 | E190: 15 | F190: 15 | G190: 6 | H190: 101234.4932 | I190: =H190*Eingabe!$C$11/12 -> 126.5431165 | J190: 906.5833333 | K190: 780.0402169 | L190: 906.5833333 | M190: 100454.453 | N190: 773.8419008
D191: 0 | E191: 15 | F191: 15 | G191: 7 | H191: 100454.453 | I191: =H191*Eingabe!$C$11/12 -> 125.5680662 | J191: 906.5833333 | K191: 781.0152671 | L191: 906.5833333 | M191: 99673.43769 | N191: 899.409967
D192: 0 | E192: 15 | F192: 15 | G192: 8 | H192: 99673.43769 | I192: =H192*Eingabe!$C$11/12 -> 124.5917971 | J192: 906.5833333 | K192: 781.9915362 | L192: 906.5833333 | M192: 98891.44615 | N192: 1024.001764
D193: 0 | E193: 15 | F193: 15 | G193: 9 | H193: 98891.44615 | I193: =H193*Eingabe!$C$11/12 -> 123.6143077 | J193: 906.5833333 | K193: 782.9690256 | L193: 906.5833333 | M193: 98108.47713 | N193: 1147.616072
D194: 0 | E194: 15 | F194: 15 | G194: 10 | H194: 98108.47713 | I194: =H194*Eingabe!$C$11/12 -> 122.6355964 | J194: 906.5833333 | K194: 783.9477369 | L194: 906.5833333 | M194: 97324.52939 | N194: 1270.251668
D195: 0 | E195: 15 | F195: 15 | G195: 11 | H195: 97324.52939 | I195: =H195*Eingabe!$C$11/12 -> 121.6556617 | J195: 906.5833333 | K195: 784.9276716 | L195: 906.5833333 | M195: 96539.60172 | N195: 1391.90733
D196: 0 | E196: 16 | F196: 15 | G196: 12 | H196: 96539.60172 | I196: =H196*Eingabe!$C$11/12 -> 120.6745021 | J196: 906.5833333 | K196: 785.9088312 | L196: 906.5833333 | M196: 95753.69289 | N196: 1512.581832
D197: =IF(AND(M197=0,M196>0),1,0) -> 0 | E197: 16 | F197: 16 | G197: 1 | H197: 95753.69289 | I197: =H197*Eingabe!$C$11/12 -> 119.6921161 | J197: 906.5833333 | K197: 786.8912172 | L197: 906.5833333 | M197: 94966.80167 | N197: 119.6921161
D198: 0 | E198: 16 | F198: 16 | G198: 2 | H198: 94966.80167 | I198: =H198*Eingabe!$C$11/12 -> 118.7085021 | J198: =IF(H198=0,0,J197) -> 906.5833333 | K198: 787.8748312 | L198: 906.5833333 | M198: =IF(H198-K198<=0,0,H198-K198) -> 94178.92684 | N198: =IF(G198=1,I198,I198+N197) -> 238.4006182
D199: 0 | E199: =IF(G199=12,1+E198,E198) -> 16 | F199: 16 | G199: 3 | H199: =M198 -> 94178.92684 | I199: =H199*Eingabe!$C$11/12 -> 117.7236585 | J199: 906.5833333 | K199: =J199-I199 -> 788.8596748 | L199: =I199+K199 -> 906.5833333 | M199: 93390.06716 | N199: 356.1242767
D200: 0 | E200: 16 | F200: 16 | G200: 4 | H200: 93390.06716 | I200: =H200*Eingabe!$C$11/12 -> 116.737584 | J200: 906.5833333 | K200: 789.8457494 | L200: 906.5833333 | M200: 92600.22141 | N200: 472.8618607
... 597 more rows
